lending/lending_fUSD_20251121
["ID","MTS","AMOUNT","RATE_DAILY","PERIOD"]
[394551682,1763697458056,151.0,0.00041938,50]
[394551683,1763697458351,151.0,0.00041938,50]
[394551684,1763697458644,151.0,0.00041938,50]
[394551685,1763697458942,186.571008,0.00041938,50]
[394551712,1763697488652,500.0,0.00041938,120]
[394551713,1763697491439,500.0,0.00041938,120]
[394551714,1763697493820,500.0,0.00041938,120]
[394551715,1763697494401,500.0,0.00041938,120]
[394551716,1763697495038,500.0,0.00041938,120]
[394551717,1763697495671,500.0,0.00041938,120]
[394551718,1763697496303,500.0,0.00041938,120]
[394551732,1763697518261,153.929327,0.00041938,50]
[394551779,1763697561371,715.0,0.00035616,120]
[394551780,1763697562048,1000.0,0.00041938,30]
[394551865,1763697591447,151.0,0.00041938,50]
[394551866,1763697591737,151.0,0.00041938,50]
[394551867,1763697592041,290.147017,0.00041938,50]
[394551904,1763697609138,524.33710981,0.00041948,120]
[394551923,1763697611822,500.0,0.00041948,120]
[394551929,1763697612499,500.0,0.00041948,120]
[394551943,1763697614987,500.0,0.00041948,120]
[394551947,1763697615533,500.0,0.00041948,120]
[394551949,1763697615591,500.0,0.00041948,120]
[394551954,1763697616246,500.0,0.00041948,120]
[394551958,1763697616868,500.0,0.00041948,120]
[394552009,1763697627280,151.0,0.00041948,50]
[394552014,1763697627937,156.79022,0.00041948,50]
[394552086,1763697640826,151.0,0.00041948,50]
[394552090,1763697641176,151.0,0.00041948,50]
[394552092,1763697641415,151.0,0.00041948,50]
[394552094,1763697641703,151.0,0.00041948,50]
[394552096,1763697641986,269.83218,0.00041948,50]
[394552149,1763697670469,500.0,0.00041948,120]
[394552150,1763697671080,500.0,0.00041948,120]
[394552151,1763697671696,500.0,0.00041948,120]
[394552186,1763697717060,716.21000027,2.111e-05,5]
[394552207,1763697725796,500.0,0.00041948,120]
[394552208,1763697728075,999.0,0.00015697,3]
[394552210,1763697789735,500.0,0.00041948,120]
[394552211,1763697789999,500.0,0.00041948,120]
[394552212,1763697790782,152.607055,0.00041948,50]
[394552213,1763697791778,500.0,0.00025137,120]
[394552214,1763697795610,500.0,0.00025137,120]
[394552215,1763697798769,554.367076,0.00025137,120]
[394552216,1763697801141,500.0,0.00041948,120]
[394552217,1763697801709,500.0,0.00041948,120]
[394552223,1763697805700,151.0,0.00041948,50]
[394552242,1763697807878,1355.17220723,0.00041948,120]
[394552303,1763697837223,816.00112052,0.00041948,120]
[394552304,1763697850235,1000.0,0.00041948,60]
[394552305,1763697851254,500.0,0.00041948,120]
[394552306,1763697851343,314.44366727,0.00041948,120]
[394552341,1763697907296,500.0,0.00041948,120]
[394552372,1763697915674,500.0,0.00041948,120]
[394552386,1763697919853,154.066957,0.00041948,50]
[394552532,1763697966217,500.0,0.00041948,120]
[394552533,1763697966341,500.0,0.00041948,120]
[394552534,1763697970012,500.0,0.00041948,120]
[394552535,1763697970661,500.0,0.00041948,120]
[394552536,1763697972988,327.37776513,0.000161,2]
[394552537,1763697980710,500.0,0.00041948,120]
[394552539,1763697981343,500.0,0.00041948,120]
[394552540,1763697981958,500.0,0.00041948,120]
[394552541,1763697982594,500.0,0.00041948,120]
[394552579,1763698028977,500.0,0.00041948,120]
[394552580,1763698029442,500.0,0.00041948,120]
[394552581,1763698030055,500.0,0.00041948,120]
[394552582,1763698030344,500.0,0.00041948,120]
[394552583,1763698030579,500.0,0.00041948,120]
[394552584,1763698030639,500.0,0.00041948,120]
[394552585,1763698030745,500.0,0.00041948,120]
[394552586,1763698031197,500.0,0.00041948,120]
[394552587,1763698031346,500.0,0.00041948,120]
[394552588,1763698031405,500.0,0.00041948,120]
[394552589,1763698031910,500.0,0.00041948,120]
[394552590,1763698031972,500.0,0.00041948,120]
[394552591,1763698032552,500.0,0.00041948,120]
[394552592,1763698032595,500.0,0.00041948,120]
[394552593,1763698033261,500.0,0.00041948,120]
[394552594,1763698033764,500.0,0.00041948,120]
[394552603,1763698034400,500.0,0.00041948,120]
[394552609,1763698035002,500.0,0.00041948,120]
[394552610,1763698035635,500.0,0.00041948,120]
[394552612,1763698036239,500.0,0.00041948,120]
[394552613,1763698036919,500.0,0.00041948,120]
[394552615,1763698037574,500.0,0.00041948,120]
[394552616,1763698039391,514.84070869,0.00041948,120]
[394552617,1763698041898,154.208736,0.00041948,50]
[394552653,1763698086648,500.0,0.00041948,120]
[394552654,1763698087249,500.0,0.00041948,120]
[394552655,1763698088877,151.0,0.00041948,50]
[394552656,1763698089526,180.760835,0.00041948,50]
[394552657,1763698089573,500.0,0.00041948,120]
[394552658,1763698089988,500.0,0.00041948,120]
[394552659,1763698090611,500.0,0.00041948,120]
[394552660,1763698091225,500.0,0.00041948,120]
[394552661,1763698091832,500.0,0.00041948,120]
[394552662,1763698092796,500.0,0.00041948,120]
[394552663,1763698093063,500.0,0.00041948,120]
[394552664,1763698099050,200.0,0.00041948,30]
[394552665,1763698099662,207.4,0.00041948,30]
[394552666,1763698100257,215.0738,0.00041948,30]
[394552668,1763698100900,223.0315306,0.00041948,30]
[394552671,1763698101534,223.0315306,0.00041948,30]
[394552743,1763698141190,466.0,0.00035616,120]
[394552746,1763698149582,151.0,0.00041948,50]
[394552807,1763698171998,151.0,0.00041948,50]
[394552833,1763698180501,151.0,0.00041948,50]
[394552962,1763698225312,200.0,0.00041948,30]
[394552965,1763698225922,207.4,0.00041948,30]
[394552969,1763698226621,215.0738,0.00041948,30]
[394552973,1763698227170,152.903088,0.00041948,50]
[394552974,1763698227220,223.0315306,0.00041948,30]
[394553014,1763698232102,-150.0,0.000162,2]
[394553015,1763698232112,-150.0,0.000162,2]
[394553016,1763698232122,-121.8679983,0.000162,2]
[394553019,1763698232157,-28.1320017,0.000162,2]
[394553020,1763698232167,-150.00000001,0.000162,2]
[394553021,1763698232178,-150.0,0.000162,2]
[394553022,1763698232187,-150.0,0.000162,2]
[394553023,1763698232197,-302.54662703,0.00016265,2]
[394553024,1763698232206,-244.94300673,0.0001633,2]
[394553025,1763698232215,-156.46789535,0.00016401,2]
[394553027,1763698232262,-10.19210465,0.00016401,2]
[394553028,1763698232273,-174.33194221,0.00016429,2]
[394553029,1763698232283,-333.2322,0.00016429,2]
[394553030,1763698232293,-698.59754614,0.00016528,2]
[394553031,1763698232370,-501.40245386,0.00016528,2]
[394553032,1763698232379,-4.61754614,0.00016529,2]
[394553049,1763698237351,151.726235,0.00041948,50]
[394553055,1763698238206,-150.71178034,0.00016529,2]
[394553166,1763698240555,-1044.67067352,0.00016529,2]
[394553168,1763698240566,-300.0,0.00016529,2]
[394553170,1763698240578,-1224.14107,0.0001653,2]
[394553173,1763698240588,-1224.14107,0.0001653,2]
[394553175,1763698240597,-1224.14107,0.0001653,2]
[394553177,1763698240607,-1224.14107,0.0001653,2]
[394553178,1763698240616,-1224.14107,0.0001653,2]
[394553180,1763698240625,-1224.14107,0.0001653,2]
[394553182,1763698240634,-289.4701065,0.00016573,2]
[394553184,1763698240643,-500.0,0.00016573,2]
[394553186,1763698240652,-500.0,0.00016573,2]
[394553188,1763698240661,-500.0,0.00016573,2]
[394553190,1763698240670,-339.01210435,0.00016573,2]
[394553193,1763698240686,-506.78599565,0.00016573,2]
[394553195,1763698240696,-550.0,0.00016583,2]
[394553197,1763698240705,-8889.39,0.00016585,2]
[394553199,1763698240715,-2820.37,0.00016585,2]
[394553201,1763698240724,-299.99,0.00016585,4]
[394553203,1763698240733,-150.99,0.00016585,2]
[394553205,1763698240743,-369.97,0.00016586,2]
[394553207,1763698240752,-9999.99,0.00016586,2]
[394553209,1763698240761,-999.99,0.00016586,2]
[394553211,1763698240770,-7160.0,0.00016586,2]
[394553213,1763698240780,-10176.78,0.00016586,2]
[394553215,1763698240789,-15034.76781582,0.00016586,2]
[394553217,1763698240798,-8891.04572019,0.00016586,2]
[394553219,1763698240807,-5328.27,0.00016592,2]
[394553221,1763698240816,-1000.0,0.00016593,2]
[394553222,1763698240827,-161.57027822,0.00016632,2]
[394553223,1763698240836,-1632.7654,0.00016658,2]
[394553224,1763698240845,-248.80901275,0.00016672,2]
[394553225,1763698240855,-300.0,0.00016672,2]
[394553226,1763698240865,-300.0,0.00016672,2]
[394553227,1763698240875,-500.0,0.00016672,2]
[394553228,1763698240893,-500.0,0.00016672,2]
[394553229,1763698240905,-500.0,0.00016672,2]
[394553230,1763698240914,-500.0,0.00016672,2]
[394553231,1763698240924,-339.95410953,0.00016672,2]
[394553232,1763698240935,-500.0,0.00016673,2]
[394553233,1763698240945,-365.08659521,0.00016673,2]
[394553234,1763698240954,-500.0,0.00016673,2]
[394553235,1763698240964,-364.06975177,0.00016673,2]
[394553236,1763698240973,-206.47367416,0.00016673,2]
[394553237,1763698240983,-502.14834927,0.00016673,2]
[394553238,1763698240992,-500.95237749,0.00016673,2]
[394553239,1763698241002,-500.0,0.00016673,2]
[394553240,1763698241012,-501.54530513,0.00016673,2]
[394553241,1763698241022,-298.42345277,0.00016673,2]
[394553242,1763698241032,-501.28182449,0.00016673,2]
[394553243,1763698241041,-500.0,0.00016673,2]
[394553244,1763698241051,-500.0,0.00016673,2]
[394553245,1763698241061,-500.0,0.00016673,2]
[394553246,1763698241070,-500.0,0.00016673,2]
[394553247,1763698241080,-500.0,0.00016673,2]
[394553248,1763698241091,-415.16633773,0.00016673,2]
[394553249,1763698241100,-327.76831071,0.00016673,2]
[394553250,1763698241110,-500.0,0.00016673,2]
[394553251,1763698241120,-300.0,0.00016685,2]
[394553252,1763698241129,-171.35956994,0.00016685,2]
[394553253,1763698241139,-535.50544651,0.00016685,2]
[394553254,1763698241149,-273.9414035,0.00016685,2]
[394553255,1763698241159,-593.91579945,0.00016685,2]
[394553256,1763698241168,-201.50079601,0.00016685,2]
[394553257,1763698241179,-99312.7808737,0.00016686,2]
[394553258,1763698241189,-797.8044244,0.00016686,2]
[394553259,1763698241199,-482.4994832,0.00016686,2]
[394553260,1763698241209,-300.0,0.00016691,2]
[394553261,1763698241219,-300.0,0.00016692,2]
[394553262,1763698241229,-300.0,0.00016692,2]
[394553263,1763698241239,-500.0,0.00016692,2]
[394553264,1763698241248,-500.0,0.00016692,2]
[394553265,1763698241258,-133751.78671485,0.00016693,2]
[394553266,1763698241268,-57924.9474906,0.00016693,2]
[394553267,1763698241278,-151.0,0.00016693,2]
[394553268,1763698241287,-155.430847,0.00016693,2]
[394553269,1763698241297,-151.0,0.00016693,2]
[394553270,1763698241307,-151.0,0.00016693,2]
[394553271,1763698241318,-352.74833876,0.00016699,2]
[394553272,1763698241327,-150.0,0.000167,2]
[394553273,1763698241337,-300.0,0.000167,2]
[394553274,1763698241347,-339.15,0.000167,2]
[394553275,1763698241356,-1102.70726,0.000167,2]
[394553276,1763698241366,-200.0,0.000167,6]
[394553277,1763698241376,-1101.19,0.000167,2]
[394553278,1763698241385,-550.68,0.000167,2]
[394553279,1763698241394,-300.0,0.000167,2]
[394553280,1763698241404,-581.16,0.000167,2]
[394553281,1763698241413,-587.85157652,0.00016717,2]
[394553282,1763698241423,-166.66,0.0001672,2]
[394553283,1763698241433,-163.74,0.00016722,2]
[394553284,1763698241442,-15034.76781577,0.00016732,2]
[394553285,1763698241452,-8891.04572017,0.00016732,2]
[394553286,1763698241461,-626.65513746,0.00016753,2]
[394553287,1763698241471,-177.5,0.000168,2]
[394553288,1763698241480,-179.34,0.000168,2]
[394553289,1763698241490,-1101.36,0.000168,2]
[394553290,1763698241503,-177.5,0.000168,2]
[394553291,1763698241512,-550.79,0.000168,2]
[394553292,1763698241523,-177.5,0.000168,2]
[394553293,1763698241532,-300.93,0.000168,2]
[394553294,1763698241543,-150.92,0.000168,2]
[394553295,1763698241553,-570.64,0.000168,2]
[394553296,1763698241562,-150.0,0.000168,2]
[394553297,1763698241573,-500.0,0.000168,6]
[394553298,1763698241582,-161.57027822,0.00016813,2]
[394553299,1763698241592,-15034.76781577,0.00016878,2]
[394553300,1763698241601,-8891.04572017,0.00016878,2]
[394553301,1763698241611,-151.0,0.00016878,2]
[394553302,1763698241620,-700.0,0.000169,6]
[394553303,1763698241630,-15902.50149177,0.000169,2]
[394553304,1763698241639,-203.10724096,0.000169,2]
[394553305,1763698241648,-1102.70727,0.0001695,2]
[394553306,1763698241658,-500.0,0.00016973,2]
[394553307,1763698241668,-500.0,0.00016973,2]
[394553308,1763698241677,-501.32913527,0.00016973,2]
[394553309,1763698241688,-500.0,0.00016973,2]
[394553310,1763698241697,-308.18826031,0.00016973,2]
[394553311,1763698241706,-500.0,0.00016973,2]
[394553312,1763698241715,-500.0,0.00016973,2]
[394553313,1763698241726,-150.0,0.00016973,2]
[394553314,1763698241735,-1232.47,0.00016973,2]
[394553315,1763698241745,-151.0,0.00016986,2]
[394553316,1763698241754,-13956.41,0.00016986,2]
[394553317,1763698241763,-163.74,0.0001699,2]
[394553318,1763698241773,-163.74,0.0001699,2]
[394553319,1763698241783,-161.57027822,0.00016994,2]
[394553320,1763698241792,-1007.27970183,0.00016999,5]
[394553321,1763698241802,-1025.14097932,0.00016999,5]
[394553322,1763698241815,-1025.14097932,0.00016999,5]
[394553323,1763698241825,-1007.27970183,0.00016999,5]
[394553324,1763698241834,-1007.27970183,0.00016999,5]
[394553325,1763698241844,-500.0,0.00016999,2]
[394553326,1763698241854,-500.0,0.00016999,2]
[394553327,1763698241863,-500.0,0.00016999,2]
[394553328,1763698241873,-500.0,0.00016999,2]
[394553329,1763698241884,-500.0,0.00016999,2]
[394553330,1763698241893,-282.65326766,0.00016999,2]
[394553331,1763698241903,-500.0,0.00016999,2]
[394553332,1763698241913,-179.14674778,0.00016999,2]
[394553333,1763698241922,-462.73571193,0.00016999,2]
[394553334,1763698241933,-5942.0,0.00017,2]
[394553335,1763698241943,-1193069.69983695,0.00017,2]
[394553336,1763698241954,-250.0,0.00017,2]
[394553337,1763698241964,-15034.76781577,0.00017024,2]
[394553338,1763698241974,-8891.04572017,0.00017024,2]
[394553339,1763698241984,-310.29,0.00017025,2]
[394553340,1763698241995,-1081.38,0.00017068,2]
[394553341,1763698242005,-629.03,0.00017068,2]
[394553342,1763698242015,-478.75,0.00017068,2]
[394553343,1763698242025,-478.75,0.00017068,2]
[394553344,1763698242035,-478.75,0.00017068,2]
[394553345,1763698242045,-478.75,0.00017068,2]
[394553346,1763698242054,-478.87,0.00017068,2]
[394553347,1763698242064,-150.0,0.000171,2]
[394553348,1763698242073,-150.0,0.000171,2]
[394553349,1763698242082,-1374.0,0.000171,2]
[394553350,1763698242092,-300.0,0.00017106,2]
[394553351,1763698242102,-503.61817401,0.00017121,2]
[394553352,1763698242112,-1000.0,0.00017121,2]
[394553353,1763698242121,-1000.0,0.00017121,2]
[394553354,1763698242132,-175.85,0.00017129,2]
[394553355,1763698242142,-15034.76781577,0.0001717,2]
[394553356,1763698242151,-8891.04572017,0.0001717,2]
[394553357,1763698242162,-500.0,0.00017173,2]
[394553358,1763698242173,-1000.0,0.000172,2]
[394553359,1763698242186,-1000.0,0.00017221,2]
[394553360,1763698242196,-1000.0,0.00017221,2]
[394553361,1763698242207,-1000.0,0.00017221,2]
[394553362,1763698242218,-1146.75971961,0.00017221,2]
[394553363,1763698242228,-752.80261697,0.00017221,2]
[394553364,1763698242238,-969.88770263,0.00017221,2]
[394553365,1763698242248,-501.34776138,0.00017221,2]
[394553366,1763698242262,-565.78509537,0.00017221,2]
[394553367,1763698242279,-913.2167407,0.00017221,2]
[394553368,1763698242290,-1232.47,0.00017247,2]
[394553369,1763698242299,-151.0,0.00017253,2]
[394553370,1763698242311,-319.8,0.00017279,2]
[394553371,1763698242320,-1000.0,0.000173,2]
[394553372,1763698242330,-15034.76781577,0.00017316,2]
[394553373,1763698242341,-8891.04572017,0.00017316,2]
[394553374,1763698242352,-417.12,0.00017342,2]
[394553375,1763698242362,-2060.84,0.00017342,2]
[394553376,1763698242372,-1401.0,0.000174,2]
[394553377,1763698242382,-1000.0,0.000174,6]
[394553378,1763698242391,-1102.70727,0.0001745,2]
[394553379,1763698242401,-561.0,0.0001746,2]
[394553380,1763698242413,-6496.0,0.0001746,2]
[394553381,1763698242422,-1606.0,0.0001746,2]
[394553382,1763698242433,-2659.0,0.0001746,2]
[394553383,1763698242444,-15034.76781577,0.00017462,2]
[394553384,1763698242454,-8891.04572017,0.00017462,2]
[394553385,1763698242465,-1300.0,0.000175,6]
[394553386,1763698242476,-514.90121309,0.00017521,2]
[394553387,1763698242488,-548.86992162,0.00017521,2]
[394553388,1763698242503,-1000.0,0.00017521,2]
[394553389,1763698242515,-987.452036,0.00017521,2]
[394553390,1763698242525,-1000.0,0.00017521,2]
[394553391,1763698242535,-356.32968314,0.00017521,2]
[394553392,1763698242546,-1232.47,0.00017521,2]
[394553393,1763698242557,-150.0,0.00017562,2]
[394553394,1763698242567,-260.0,0.00017562,2]
[394553395,1763698242577,-150.0,0.00017562,2]
[394553396,1763698242587,-150.0,0.00017562,2]
[394553397,1763698242601,-150.0,0.00017562,2]
[394553398,1763698242611,-150.0,0.00017562,2]
[394553399,1763698242621,-150.0,0.00017562,2]
[394553400,1763698242630,-250.0,0.00017562,2]
[394553401,1763698242641,-150.0,0.00017562,2]
[394553402,1763698242650,-150.0,0.00017562,2]
[394553403,1763698242660,-150.0,0.00017562,2]
[394553404,1763698242669,-575.0,0.00017562,2]
[394553405,1763698242680,-609.0,0.00017562,2]
[394553406,1763698242690,-557.38246931,0.00017562,2]
[394553414,1763698244280,-317.26833938,0.000169,2]
[394553415,1763698244290,-148.23234399,0.00017175,2]
[394553416,1763698244554,-13.33793423,0.00017175,2]
[394553417,1763698244565,-816.59248902,0.00017562,2]
[394553418,1763698244577,-2061.02504167,0.00017562,2]
[394553419,1763698244587,-880.3635749,0.00017562,2]
[394553420,1763698246329,-1029.72194109,0.0001746,2]
[394553421,1763698246572,-123.00618305,0.00016886,2]
[394553422,1763698246586,-1541.76364472,0.00016886,2]
[394553423,1763698246605,-335.23017223,0.00016886,2]
[394553424,1763698246614,-162.27805891,0.0001746,2]
[394553425,1763698246624,-438.6364251,0.00017562,2]
[394553426,1763698246633,-56.85534376,0.00017562,2]
[394553427,1763698246645,-765.14465624,0.00017562,2]
[394553428,1763698246654,-109.44929918,0.00017562,2]
[394553442,1763698252708,151.0,0.00041948,50]
[394553449,1763698261959,200.0,0.00041948,30]
[394553457,1763698272057,176.68187628,0.00041948,30]
[394553470,1763698294560,151.0,0.00041948,50]
[394553471,1763698294844,151.0,0.00041948,50]
[394553472,1763698295142,155.082516,0.00041948,50]
[394553513,1763698347329,152.393964,0.00041948,50]
[394553519,1763698351731,151.0,0.00041948,50]
[394553548,1763698388250,151.0,0.00041948,50]
[394553553,1763698400497,151.0,0.00041948,50]
[394553554,1763698400974,151.0,0.00041948,50]
[394553668,1763698486875,1000.0,0.00041948,90]
[394553679,1763698490112,151.0,0.00041948,50]
[394553777,1763698528491,151.0,0.00041948,50]
[394553778,1763698528841,151.0,0.00041948,50]
[394553779,1763698529788,151.0,0.00041948,50]
[394553780,1763698530785,15000.0,0.00035616,120]
[394553804,1763698562673,3672.0,0.00035616,120]
[394553806,1763698569806,151.0,0.00041948,50]
[394553807,1763698570107,151.0,0.00041948,50]
[394553815,1763698590462,157.218919,0.00041948,50]
[394553829,1763698593673,151.0,0.00041948,50]
[394553851,1763698599311,10039.26453259,0.00041948,120]
[394553868,1763698602175,151.0,0.00041948,50]
[394553870,1763698602475,151.0,0.00041948,50]
[394553892,1763698628168,151.922551,0.00041948,50]
[394553893,1763698630438,152.564075,0.00041948,50]
[394553894,1763698630616,151.0,0.00041948,50]
[394553895,1763698630903,151.0,0.00041948,50]
[394553914,1763698645190,151.22876778,0.00041948,120]
[394553915,1763698649813,151.0,0.00041948,50]
[394553916,1763698650013,151.0,0.00041938,50]
[394553917,1763698673608,300.0,0.00035,120]
[394553918,1763698702633,837.0,0.00035,120]
[394553919,1763698813072,200.0,0.00016081,2]
[394553953,1763699284047,166.66,0.00016162,2]
[394553958,1763699417848,1021.09954259,0.00035616,120]
[394553982,1763699431435,-150.0,0.000162,2]
[394553983,1763699431445,-150.0,0.000162,2]
[394553984,1763699431455,-150.0,0.000162,2]
[394553985,1763699431465,-150.0,0.000162,2]
[394553986,1763699431475,-150.0,0.000162,2]
[394553987,1763699431484,-150.0,0.000162,2]
[394553988,1763699431494,-553.64,0.00016306,2]
[394553989,1763699431503,-2185.0739,0.00016386,2]
[394553990,1763699431513,-1200.0,0.00016413,2]
[394553991,1763699431522,-2361.03,0.00016414,2]
[394553992,1763699431531,-370.78,0.00016414,2]
[394553993,1763699431540,-250.0,0.0001643,2]
[394553994,1763699431549,-300.0,0.00016466,2]
[394553995,1763699431559,-300.0,0.00016466,2]
[394553996,1763699431569,-6223.7320042,0.00016468,2]
[394553997,1763699431578,-500.0,0.00016473,2]
[394553998,1763699431587,-500.0,0.00016473,2]
[394554000,1763699431598,-503.61817401,0.00016473,2]
[394554002,1763699431608,-550.0,0.00016484,2]
[394554004,1763699431617,-162.52786167,0.00016485,2]
[394554005,1763699431627,-1000.0,0.00016485,2]
[394554006,1763699431637,-477.88929844,0.00016485,2]
[394554007,1763699431646,-509.804735,0.00016485,2]
[394554008,1763699431656,-500.0,0.00016485,2]
[394554009,1763699431666,-507.67202488,0.00016485,2]
[394554010,1763699431675,-500.0,0.00016485,2]
[394554011,1763699431687,-504.66525757,0.00016485,2]
[394554012,1763699431696,-517.05634255,0.00016485,2]
[394554013,1763699431706,-555.57647281,0.00016485,2]
[394554014,1763699431716,-1675.39,0.00016485,2]
[394554015,1763699431725,-192.92570184,0.00016485,2]
[394554017,1763699431735,-535.46566359,0.00016485,2]
[394554019,1763699431744,-500.0,0.00016485,2]
[394554021,1763699431753,-500.0,0.00016485,2]
[394554023,1763699431762,-500.0,0.00016485,2]
[394554025,1763699431772,-299.99,0.00016486,4]
[394554026,1763699431782,-9999.99,0.00016486,2]
[394554027,1763699431791,-150.99,0.00016486,2]
[394554028,1763699431800,-235.36091655,0.0001655,2]
[394554029,1763699431810,-150.0,0.00016569,2]
[394554030,1763699431819,-1000.0,0.00016586,2]
[394554031,1763699431829,-6223.73200411,0.00016627,2]
[394554032,1763699431838,-150.0,0.0001665,2]
[394554033,1763699431848,-500.0,0.00016672,2]
[394554034,1763699431858,-505.15491682,0.00016692,2]
[394554035,1763699431868,-166.66,0.00016695,2]
[394554036,1763699431877,-329.502,0.000167,2]
[394554037,1763699431887,-1000.0,0.000167,2]
[394554038,1763699431896,-1000.0,0.000167,2]
[394554039,1763699431908,-154.964,0.000167,2]
[394554040,1763699431923,-535.62,0.000167,2]
[394554041,1763699431933,-478.75,0.000167,2]
[394554042,1763699431943,-235.36091654,0.00016743,2]
[394554043,1763699431957,-255.84,0.00016772,2]
[394554044,1763699431966,-6223.73200411,0.00016786,2]
[394554045,1763699431975,-155.60118005,0.00016921,2]
[394554046,1763699431985,-161.57027822,0.00016921,2]
[394554047,1763699431996,-235.36091654,0.00016936,2]
[394554048,1763699432006,-6223.73200411,0.00016945,2]
[394554049,1763699432015,-500.0,0.00016973,2]
[394554050,1763699432025,-501.34776138,0.00016973,2]
[394554051,1763699432035,-500.0,0.00016973,2]
[394554052,1763699432044,-500.0,0.00016973,2]
[394554053,1763699432054,-500.0,0.00016973,2]
[394554054,1763699432063,-500.0,0.00016973,2]
[394554055,1763699432073,-565.78509537,0.00016973,2]
[394554056,1763699432083,-383.25,0.00016978,2]
[394554057,1763699432092,-163.75,0.0001699,2]
[394554058,1763699432102,-500.0,0.00016999,2]
[394554059,1763699432112,-500.0,0.00016999,2]
[394554060,1763699432122,-500.0,0.00016999,2]
[394554061,1763699432132,-500.0,0.00016999,2]
[394554062,1763699432141,-500.0,0.00016999,2]
[394554063,1763699432151,-500.0,0.00016999,2]
[394554064,1763699432160,-500.0,0.00016999,2]
[394554065,1763699432169,-500.0,0.00016999,2]
[394554066,1763699432178,-197.85728736,0.00016999,2]
[394554067,1763699432187,-173.91499835,0.00016999,2]
[394554068,1763699432196,-32111.64340206,0.00017,2]
[394554069,1763699432256,-3301.08,0.00017,2]
[394554070,1763699432268,-446.72908289,0.00017,2]
[394554075,1763699437787,-343.54531512,0.00017,2]
[394554076,1763699437916,-11344.07355247,0.00017,2]
[394554077,1763699438022,-364.1158453,0.00017,2]
[394554080,1763699439499,-1337989.13438454,0.00017,2]
[394554085,1763699444818,-264.264,0.000167,2]
[394554086,1763699445565,-946.496,0.000167,2]
[394554087,1763699445575,-2137.63989,0.00017,2]
[394554096,1763699445850,-1526.85100843,0.00017,2]
[394554098,1763699464904,1000.0,0.00013699,2]
[394554099,1763699465983,1007.12936943,0.00035616,120]
[394554100,1763699491163,651.0,0.00035616,120]
[394554110,1763699593089,354.041141,0.00032987,120]
[394554111,1763699597036,500.0,0.00025487,120]
[394554112,1763699598160,500.0,0.00027487,120]
[394554113,1763699598366,527.247811,0.00029487,120]
[394554122,1763699687719,1051.0,0.00035616,120]
[394554137,1763699717405,325.0,0.00032375,120]
[394554138,1763699718998,325.0,0.00033993,120]
[394554140,1763699728791,400.0,0.000356,120]
[394554150,1763699794028,340.0,0.000356,120]
[394554151,1763699809394,200.0,0.00016141,2]
[394554155,1763699883417,751.0,0.00035616,120]
[394554157,1763699907825,150.0,0.00016098,2]